bitfinex-derivatives/quotes_BNBF0:USTF0_20250608
["timestamp","ask_amount","ask_price","bid_price","bid_amount"]
[1749424992813,1.08377834,652.44,651.46,0.30700273]
[1749424993012,1.08377834,652.43,651.46,0.30700273]
[1749424993207,1.08377834,652.42,651.46,0.30700273]
[1749424993410,1.08377834,652.41,651.46,0.30700273]
[1749424993711,1.08377834,652.4,651.46,0.30700273]
[1749424993912,1.08377834,652.39,651.46,0.30700273]
[1749424994112,1.08377834,652.38,651.46,0.30700273]
[1749424994311,1.08377834,652.37,651.46,0.30700273]
[1749424994509,1.08377834,652.36,651.46,0.30700273]
[1749424994710,1.08377834,652.35,651.46,0.30700273]
[1749424994911,1.303,652.49,651.46,0.30700273]
[1749424994912,1.08377834,652.34,651.46,0.30700273]
[1749424995111,1.08377834,652.33,651.46,0.30700273]
[1749424995314,1.303,652.49,651.46,0.30700273]
[1749424995315,1.08377834,652.32,651.46,0.30700273]
[1749424995510,2.31495543,652.48,651.46,0.30700273]
[1749424995810,1.08377834,652.47,651.46,0.30700273]
[1749424996015,1.08377834,652.46,651.46,0.30700273]
[1749424996211,1.08377834,652.45,651.46,0.30700273]
[1749424996512,1.08377834,652.44,651.46,0.30700273]
[1749424996716,1.08377834,652.43,651.46,0.30700273]
[1749424996916,1.08377834,652.42,651.46,0.30700273]
[1749424997115,1.08377834,652.41,651.46,0.30700273]
[1749424997318,1.08377834,652.4,651.46,0.30700273]
[1749424997518,1.08377834,652.39,651.46,0.30700273]
[1749424997713,1.08377834,652.38,651.46,0.30700273]
[1749424998018,1.08377834,652.37,651.46,0.30700273]
[1749424998315,1.08377834,652.36,651.46,0.30700273]
[1749424998518,1.08377834,652.35,651.46,0.30700273]
[1749424998719,1.23099274,652.47,651.46,0.30700273]
[1749424998720,1.08377834,652.34,651.46,0.30700273]
[1749424998917,1.08377834,652.33,651.46,0.30700273]
[1749424999121,1.08377834,652.32,651.46,0.30700273]
[1749424999421,1.08377834,652.47,651.46,0.30700273]
[1749424999717,1.08377834,652.46,651.46,0.30700273]
[1749425000015,1.08377834,652.45,651.46,0.30700273]
[1749425000218,1.08377834,652.44,651.46,0.30700273]
[1749425000420,1.08377834,652.43,651.46,0.30700273]
[1749425000616,1.08377834,652.42,651.46,0.30700273]
[1749425000817,1.08377834,652.41,651.46,0.30700273]
[1749425001017,1.08377834,652.4,651.46,0.30700273]
[1749425001322,1.08377834,652.39,651.46,0.30700273]
[1749425001518,1.08377834,652.38,651.46,0.30700273]
[1749425001721,1.08377834,652.37,651.46,0.30700273]
[1749425001919,1.08377834,652.36,651.46,0.30700273]
[1749425002121,1.08377834,652.35,651.46,0.30700273]
[1749425002319,1.14376208,652.47,651.46,0.30700273]
[1749425002523,1.08377834,652.46,651.46,0.30700273]
[1749425002820,2.37500865,652.47,651.46,0.30700273]
[1749425002821,1.08377834,652.45,651.46,0.30700273]
[1749425003021,1.08377834,652.44,651.46,0.30700273]
[1749425003224,1.08377834,652.43,651.46,0.30700273]
[1749425003419,1.08377834,652.42,651.46,0.30700273]
[1749425003621,1.08377834,652.41,651.46,0.30700273]
[1749425003820,1.08377834,652.4,651.46,0.30700273]
[1749425004023,1.08377834,652.39,651.46,0.30700273]
[1749425004225,1.08377834,652.38,651.46,0.30700273]
[1749425004424,1.08377834,652.37,651.46,0.30700273]
[1749425004622,1.08377834,652.46,651.46,0.30700273]
[1749425004825,1.08377834,652.45,651.46,0.30700273]
[1749425005027,1.08377834,652.44,651.46,0.30700273]
[1749425005227,1.08377834,652.43,651.46,0.30700273]
[1749425005427,1.08377834,652.42,651.46,0.30700273]
[1749425005625,1.08377834,652.41,651.46,0.30700273]
[1749425005827,1.08377834,652.4,651.46,0.30700273]
[1749425006026,1.08377834,652.39,651.46,0.30700273]
[1749425006227,1.08377834,652.38,651.46,0.30700273]
[1749425006430,1.08377834,652.37,651.46,0.30700273]
[1749425006630,1.08377834,652.36,651.46,0.30700273]
[1749425006828,1.08377834,652.35,651.46,0.30700273]
[1749425007028,1.08377834,652.34,651.46,0.30700273]
[1749425007228,1.08377834,652.33,651.46,0.30700273]
[1749425007427,1.08377834,652.32,651.46,0.30700273]
[1749425007631,1.08377834,652.31,651.46,0.30700273]
[1749425007828,1.08377834,652.3,651.46,0.30700273]
[1749425008032,1.08377834,652.29,651.46,0.30700273]
[1749425008328,1.08377834,652.28,651.46,0.30700273]
[1749425008531,1.08377834,652.27,651.46,0.30700273]
[1749425008732,1.14376208,652.46,651.46,0.30700273]
[1749425008733,1.08377834,652.26,651.46,0.30700273]
[1749425008932,3.41372196,652.45,651.46,0.30700273]
[1749425009129,1.08377834,652.44,651.46,0.30700273]
[1749425009332,1.08377834,652.43,651.46,0.30700273]
[1749425009632,2.22754042,652.42,651.46,0.30700273]
[1749425009833,2.31374426,652.41,651.46,0.30700273]
[1749425010034,1.6286805,652.4,651.46,0.30700273]
[1749425010232,1.08377834,652.39,651.46,0.30700273]
[1749425010430,1.08377834,652.38,651.46,0.30700273]
[1749425010631,1.08377834,652.37,651.46,0.30700273]
[1749425010834,1.08377834,652.36,651.46,0.30700273]
[1749425011034,2.88083841,652.4,651.46,0.30700273]
[1749425011035,1.08377834,652.35,651.46,0.30700273]
[1749425011336,1.08377834,652.34,651.46,0.30700273]
[1749425011535,1.08377834,652.33,651.46,0.30700273]
[1749425011729,1.08377834,652.32,651.46,0.30700273]
[1749425011929,1.08377834,652.31,651.46,0.30700273]
[1749425012133,1.08377834,652.3,651.46,0.30700273]
[1749425012332,1.08377834,652.29,651.46,0.30700273]
[1749425012532,1.08377834,652.28,651.46,0.30700273]
[1749425012836,1.08377834,652.27,651.46,0.30700273]
[1749425013032,1.08377834,652.35,651.46,0.30700273]
[1749425013237,1.08377834,652.34,651.46,0.30700273]
[1749425013437,1.08377834,652.33,651.46,0.30700273]
[1749425013632,1.08377834,652.32,651.46,0.30700273]
[1749425013835,1.08377834,652.31,651.46,0.30700273]
[1749425014033,1.08377834,652.3,651.46,0.30700273]
[1749425014237,1.08377834,652.29,651.46,0.30700273]
[1749425014434,1.08377834,652.28,651.46,0.30700273]
[1749425014638,1.08377834,652.27,651.46,0.30700273]
[1749425014934,2.86034061,652.36,651.46,0.30700273]
[1749425015137,1.08377834,652.35,651.46,0.30700273]
[1749425015334,1.08377834,652.34,651.46,0.30700273]
[1749425015540,1.08377834,652.33,651.07,0.26694589]
[1749425015834,1.08377834,652.32,651.08,0.30718191]
[1749425016136,1.08377834,652.31,651.08,0.30718191]
[1749425016439,1.08377834,652.3,651.08,0.30718191]
[1749425016632,1.08377834,652.29,651.08,0.30718191]
[1749425016835,1.08377834,652.28,651.08,0.30718191]
[1749425017035,1.08377834,652.27,651.08,0.30718191]
[1749425017238,1.08377834,652.26,651.08,0.30718191]
[1749425017436,1.08377834,652.25,651.08,0.30718191]
[1749425017735,1.08377834,652.24,651.08,0.30718191]
[1749425017940,1.08377834,652.23,651.08,0.30718191]
[1749425018137,1.08377834,652.22,651.08,0.30718191]
[1749425018442,1.08377834,652.21,651.08,0.30718191]
[1749425018739,1.62832212,652.3,651.08,0.30718191]
[1749425018943,1.209,652.2,651.08,0.30718191]
[1749425020442,1.08377834,652.19,651.08,0.30718191]
[1749425020644,1.08377834,652.18,651.08,0.30718191]
[1749425020843,1.08377834,652.19,651.08,0.30718191]
[1749425021247,1.07622561,652.18,651.08,0.30718191]
[1749425021446,1.07622561,652.17,651.08,0.30718191]
[1749425021643,1.07622561,652.16,651.08,0.30718191]
[1749425021846,1.07622561,652.19,651.08,0.30718191]
[1749425022046,1.07622561,652.18,651.08,0.30718191]
[1749425022243,1.07622561,652.17,651.08,0.30718191]
[1749425022443,1.07622561,652.16,651.08,0.30718191]
[1749425022643,1.07622561,652.15,651.08,0.30718191]
[1749425022847,1.07622561,652.14,651.08,0.30718191]
[1749425023146,1.209,652.2,651.08,0.30718191]
[1749425023147,1.07622561,652.13,651.08,0.30718191]
[1749425023446,1.07622561,652.12,651.08,0.30718191]
[1749425023647,1.07622561,652.19,651.08,0.30718191]
[1749425023849,1.07622561,652.18,651.08,0.30718191]
[1749425024150,1.07622561,652.17,651.08,0.30718191]
[1749425024344,1.07622561,652.16,651.08,0.30718191]
[1749425024548,1.07622561,652.15,651.08,0.30718191]
[1749425024742,1.209,652.2,651.08,0.30718191]
[1749425024743,1.07622561,652.14,651.08,0.30718191]
[1749425025048,1.07622561,652.13,651.08,0.30718191]
[1749425025344,1.07622561,652.19,651.08,0.30718191]
[1749425025548,1.07622561,652.18,651.08,0.30718191]
[1749425025748,1.07622561,652.17,651.08,0.30718191]
[1749425026049,1.07622561,652.16,651.08,0.30718191]
[1749425026347,1.07622561,652.15,651.08,0.30718191]
[1749425026648,1.07622561,652.14,651.08,0.30718191]
[1749425026849,1.07622561,652.19,651.08,0.30718191]
[1749425027050,1.07622561,652.18,651.08,0.30718191]
[1749425027344,1.07622561,652.17,651.08,0.30718191]
[1749425027646,1.07622561,652.16,651.08,0.30718191]
[1749425027846,1.07622561,652.15,651.08,0.30718191]
[1749425028151,1.07622561,652.19,651.08,0.30718191]
[1749425028451,1.07622561,652.18,651.08,0.30718191]
[1749425028744,1.07622561,652.17,651.08,0.30718191]
[1749425028949,1.07622561,652.16,651.08,0.30718191]
[1749425029149,1.07622561,652.15,651.08,0.30718191]
[1749425029350,1.209,652.2,651.08,0.30718191]
[1749425029351,1.07622561,652.19,651.08,0.30718191]
[1749425029550,1.07622561,652.18,651.08,0.30718191]
[1749425029751,1.07622561,652.17,651.08,0.30718191]
[1749425029951,1.07622561,652.16,651.08,0.30718191]
[1749425030147,1.07622561,652.19,651.08,0.30718191]
[1749425030350,1.07622561,652.18,651.08,0.30718191]
[1749425030548,1.07622561,652.17,651.08,0.30718191]
[1749425030751,1.07622561,652.16,651.08,0.30718191]
[1749425030951,1.07622561,652.15,651.08,0.30718191]
[1749425031148,1.07622561,652.19,651.08,0.30718191]
[1749425031350,1.07622561,652.18,651.08,0.30718191]
[1749425031549,1.07622561,652.17,651.08,0.30718191]
[1749425031753,1.07622561,652.16,651.08,0.30718191]
[1749425031954,1.07622561,652.15,651.08,0.30718191]
[1749425032155,1.07622561,652.19,651.08,0.30718191]
[1749425032449,1.07622561,652.18,651.08,0.30718191]
[1749425032648,1.209,652.2,651.08,0.30718191]
[1749425032649,1.07622561,652.17,651.08,0.30718191]
[1749425032850,1.07622561,652.16,651.08,0.30718191]
[1749425033048,1.07622561,652.15,651.08,0.30718191]
[1749425033248,1.07622561,652.19,651.08,0.30718191]
[1749425033450,1.07622561,652.18,651.08,0.30718191]
[1749425033751,1.07622561,652.17,651.08,0.30718191]
[1749425033951,1.07622561,652.16,651.08,0.30718191]
[1749425034253,1.07622561,652.15,651.08,0.30718191]
[1749425034454,1.07622561,652.14,651.08,0.30718191]
[1749425034653,1.07622561,652.19,651.08,0.30718191]
[1749425034951,1.07622561,652.18,651.08,0.30718191]
[1749425035154,1.07622561,652.17,651.08,0.30718191]
[1749425035354,1.07622561,652.16,651.08,0.30718191]
[1749425035555,1.07622561,652.15,651.08,0.30718191]
[1749425035854,1.07622561,652.14,651.08,0.30718191]
[1749425036050,1.07622561,652.19,651.08,0.30718191]
[1749425036354,1.07622561,652.18,651.08,0.30718191]
[1749425036551,1.07622561,652.17,651.08,0.30718191]
[1749425036755,1.07622561,652.16,651.08,0.30718191]
[1749425036951,1.07622561,652.15,651.08,0.30718191]
[1749425037156,1.209,652.2,651.08,0.30718191]
[1749425037157,1.07622561,652.14,651.08,0.30718191]
[1749425037356,1.07622561,652.13,651.08,0.30718191]
[1749425037557,1.07622561,652.12,651.08,0.30718191]
[1749425037752,1.07622561,652.19,651.08,0.30718191]
[1749425038058,1.07622561,652.18,651.08,0.30718191]
[1749425038254,1.07622561,652.17,651.08,0.30718191]
[1749425038554,1.07622561,652.16,651.08,0.30718191]
[1749425038758,1.07622561,652.15,651.08,0.30718191]
[1749425038958,1.07622561,652.14,651.08,0.30718191]
[1749425039258,1.07622561,652.13,651.08,0.30718191]
[1749425039458,1.07622561,652.12,651.08,0.30718191]
[1749425039651,1.07622561,652.11,651.08,0.30718191]
[1749425039856,1.209,652.2,651.08,0.30718191]
[1749425039857,1.07622561,652.19,651.08,0.30718191]
[1749425040056,1.07622561,652.18,651.08,0.30718191]
[1749425040253,1.07622561,652.17,651.08,0.30718191]
[1749425040457,1.07622561,652.16,651.08,0.30718191]
[1749425040657,1.07622561,652.15,651.08,0.30718191]
[1749425040957,1.07622561,652.14,651.08,0.30718191]
[1749425041155,1.07622561,652.13,651.08,0.30718191]
[1749425041357,1.07622561,652.12,651.08,0.30718191]
[1749425041555,1.07622561,652.11,651.08,0.30718191]
[1749425041755,1.07622561,652.19,651.08,0.30718191]
[1749425041959,1.07622561,652.18,651.08,0.30718191]
[1749425042256,1.07622561,652.17,651.08,0.30718191]
[1749425042458,1.07622561,652.16,651.08,0.30718191]
[1749425042659,1.07622561,652.15,651.08,0.30718191]
[1749425042955,1.07622561,652.14,651.08,0.30718191]
[1749425043158,1.07622561,652.13,651.08,0.30718191]
[1749425043454,1.07622561,652.12,651.08,0.30718191]
[1749425043656,1.07622561,652.11,651.08,0.30718191]
[1749425043858,1.07622561,652.19,651.08,0.30718191]
[1749425044055,1.07622561,652.18,651.08,0.30718191]
[1749425044256,1.07622561,652.17,651.08,0.30718191]
[1749425044457,1.07622561,652.16,651.08,0.30718191]
[1749425044657,1.07622561,652.15,651.08,0.30718191]
[1749425044860,1.07622561,652.14,651.08,0.30718191]
[1749425045162,1.07622561,652.13,651.08,0.30718191]
[1749425045360,1.07622561,652.12,651.08,0.30718191]
[1749425045560,1.07622561,652.11,651.08,0.30718191]
[1749425045858,1.07622561,652.1,651.08,0.30718191]
[1749425046157,1.07622561,652.19,651.08,0.30718191]
[1749425046360,1.07622561,652.18,651.08,0.30718191]
[1749425046559,1.07622561,652.17,651.08,0.30718191]
[1749425046761,1.07622561,652.16,651.08,0.30718191]
[1749425047059,1.07622561,652.15,651.08,0.30718191]
[1749425047258,1.07622561,652.14,651.08,0.30718191]
[1749425047460,1.07622561,652.13,651.08,0.30718191]
[1749425047756,1.07622561,652.12,651.08,0.30718191]
[1749425047958,1.07622561,652.11,651.08,0.30718191]
[1749425048158,1.07622561,652.1,651.08,0.30718191]
[1749425048363,1.07622561,652.09,651.08,0.30718191]
[1749425048563,1.07622561,652.08,651.08,0.30718191]
[1749425048760,1.07622561,652.19,651.08,0.30718191]
[1749425049061,1.07622561,652.18,651.08,0.30718191]
[1749425049261,1.07622561,652.17,651.08,0.30718191]
[1749425049464,1.07622561,652.16,651.08,0.30718191]
[1749425049659,1.07622561,652.15,651.08,0.30718191]
[1749425049864,1.07622561,652.14,651.08,0.30718191]
[1749425050164,1.07622561,652.13,651.08,0.30718191]
[1749425050362,1.07622561,652.12,651.08,0.30718191]
[1749425050561,1.07622561,652.11,651.08,0.30718191]
[1749425050761,1.07622561,652.1,651.08,0.30718191]
[1749425051061,1.07622561,652.09,651.08,0.30718191]
[1749425051364,1.07622561,652.19,651.08,0.30718191]
[1749425051664,1.08243001,652.18,651.08,0.30718191]
[1749425051965,1.08243001,652.17,651.08,0.30718191]
[1749425052165,1.08243001,652.16,651.08,0.30718191]
[1749425052365,1.08243001,652.15,651.08,0.30718191]
[1749425052565,1.08243001,652.14,651.08,0.30718191]
[1749425052760,1.08243001,652.13,651.08,0.30718191]
[1749425052966,1.08243001,652.12,651.08,0.30718191]
[1749425053262,1.08243001,652.11,651.08,0.30718191]
[1749425053465,1.08243001,652.1,651.08,0.30718191]
[1749425053662,1.08243001,652.09,651.08,0.30718191]
[1749425053862,0.26705958,651.86,651.08,0.30718191]
[1749425066069,1.224,651.85,651.08,0.30718191]
[1749425118101,0.26703806,651.93,651.13,3.78666608]
[1749425118404,0.26703806,651.93,651.13,4.0938244]
[1749425118601,0.26703806,651.93,651.13,0.30715832]
[1749425119003,0.26703806,651.93,651.17,3.78666608]
[1749425121001,1.121,651.92,651.17,3.78666608]
[1749425121402,1.121,651.92,651.16,3.78666608]
[1749425123113,1.121,651.92,651.13,0.30715832]
[1749425144141,0.26703806,651.93,651.13,0.30715832]
[1749425147040,1.145,651.92,651.13,0.30715832]
[1749425170065,0.26703806,651.93,651.13,0.30715832]
[1749425173964,1.077,651.92,651.13,0.30715832]
[1749425176971,1.077,651.92,651.13,4.0938244]
[1749425180269,1.077,651.92,651.13,0.30715832]
[1749425183373,2.14990044,651.92,651.13,0.30715832]
[1749425183668,1.077,651.92,651.13,0.30715832]
[1749425205089,2.15034631,651.92,651.13,0.30715832]
[1749425205489,1.07334631,651.91,651.13,0.30715832]
[1749425205687,1.07334631,651.9,651.13,0.30715832]
[1749425205891,1.07334631,651.89,651.13,0.30715832]
[1749425206091,1.07334631,651.88,651.13,0.30715832]
[1749425206286,1.07334631,651.87,651.13,0.30715832]
[1749425206486,1.07334631,651.86,651.13,0.30715832]
[1749425206693,1.07334631,651.91,651.13,0.30715832]
[1749425206993,1.07334631,651.9,651.13,0.30715832]
[1749425207191,1.07334631,651.89,651.13,0.30715832]
[1749425207392,1.07334631,651.88,651.13,0.30715832]
[1749425207593,1.07334631,651.87,651.13,0.30715832]
[1749425207788,1.07334631,651.91,651.13,0.30715832]
[1749425208090,1.07334631,651.9,651.13,0.30715832]
[1749425208389,1.07334631,651.89,651.13,0.30715832]
[1749425208586,1.077,651.92,651.13,0.30715832]
[1749425208587,1.07334631,651.88,651.13,0.30715832]
[1749425208791,1.07334631,651.87,651.13,0.30715832]
[1749425208988,1.07334631,651.86,651.13,0.30715832]
[1749425209290,1.07334631,651.91,651.13,0.30715832]
[1749425209491,1.07334631,651.9,651.13,0.30715832]
[1749425209690,1.07334631,651.89,651.13,0.30715832]
[1749425209891,1.07334631,651.88,651.13,0.30715832]
[1749425210088,1.07334631,651.87,651.13,0.30715832]
[1749425210292,1.07334631,651.86,651.13,0.30715832]
[1749425210492,1.07334631,651.91,651.13,0.30715832]
[1749425210690,1.07334631,651.9,651.13,0.30715832]
[1749425210893,1.07334631,651.89,651.13,0.30715832]
[1749425211091,1.07334631,651.88,651.13,0.30715832]
[1749425211289,1.07334631,651.87,651.13,0.30715832]
[1749425211493,1.07334631,651.91,651.13,0.30715832]
[1749425211789,1.07334631,651.9,651.13,0.30715832]
[1749425211991,1.077,651.92,651.13,0.30715832]
[1749425211992,1.07334631,651.89,651.13,0.30715832]
[1749425212189,1.07334631,651.88,651.13,0.30715832]
[1749425212393,1.07334631,651.91,651.13,0.30715832]
[1749425212591,1.07334631,651.9,651.13,0.30715832]
[1749425212888,1.07334631,651.89,651.13,0.30715832]
[1749425213093,1.07334631,651.88,651.13,0.30715832]
[1749425213290,1.07334631,651.91,651.13,0.30715832]
[1749425213493,1.07334631,651.9,651.13,0.30715832]
[1749425213692,1.07334631,651.89,651.13,0.30715832]
[1749425213996,1.07334631,651.91,651.13,0.30715832]
[1749425214196,1.07334631,651.9,651.13,0.30715832]
[1749425214392,1.07334631,651.89,651.13,0.30715832]
[1749425214596,1.07334631,651.91,651.13,0.30715832]
[1749425214796,1.07334631,651.9,651.13,0.30715832]
[1749425214997,1.07334631,651.91,651.13,0.30715832]
[1749425215196,1.07334631,651.9,651.13,0.30715832]
[1749425215398,1.07213946,651.91,651.13,0.30715832]
[1749425215597,1.077,651.92,651.13,0.30715832]
[1749425222902,0.26703806,651.93,651.13,0.30715832]
[1749425225204,1.298,651.92,651.13,0.30715832]
[1749425233711,2.37099951,651.92,651.13,0.30715832]
[1749425234012,1.07299951,651.91,651.13,0.30715832]
[1749425234411,1.298,651.92,651.13,0.30715832]
[1749425235415,2.37099951,651.92,651.13,0.30715832]
[1749425236511,1.07299951,651.91,651.13,0.30715832]
[1749425237618,1.07299951,651.9,651.13,0.30715832]
[1749425237819,1.07299951,651.91,651.13,0.30715832]
[1749425238115,1.07299951,651.9,651.13,0.30715832]
[1749425238318,1.298,651.92,651.13,0.30715832]
[1749425238319,1.07299951,651.91,651.13,0.30715832]
[1749425238514,1.07299951,651.9,651.13,0.30715832]
[1749425238718,1.07299951,651.89,651.13,0.30715832]
[1749425238916,1.07299951,651.91,651.13,0.30715832]
[1749425239119,1.07299951,651.9,651.13,0.30715832]
[1749425239320,1.07299951,651.89,651.13,0.30715832]
[1749425239517,1.07299951,651.88,651.13,0.30715832]
[1749425239816,1.07299951,651.91,651.13,0.30715832]
[1749425240018,1.07299951,651.9,651.13,0.30715832]
[1749425240220,1.07299951,651.89,651.13,0.30715832]
[1749425240416,1.0731453,651.88,651.13,0.30715832]
[1749425240618,1.0731453,651.87,651.13,0.30715832]
[1749425240917,1.0731453,651.86,651.13,0.30715832]
[1749425241117,1.0731453,651.85,651.13,0.30715832]
[1749425241317,1.0731453,651.84,651.13,0.30715832]
[1749425241520,1.0731453,651.91,651.13,0.30715832]
[1749425241820,1.0731453,651.9,651.13,0.30715832]
[1749425242017,1.0731453,651.89,651.13,0.30715832]
[1749425242218,1.0731453,651.88,651.13,0.30715832]
[1749425242419,1.0731453,651.87,651.13,0.30715832]
[1749425242624,1.0731453,651.86,651.13,0.30715832]
[1749425242923,1.0731453,651.85,651.13,0.30715832]
[1749425243123,1.0731453,651.84,651.13,0.30715832]
[1749425243323,1.0731453,651.91,651.13,0.30715832]
[1749425243523,1.0731453,651.9,651.13,0.30715832]
[1749425243724,1.0731453,651.89,651.13,0.30715832]
[1749425243924,1.0731453,651.88,651.13,0.30715832]
[1749425244224,1.0731453,651.87,651.13,0.30715832]
[1749425244424,1.0731453,651.86,651.13,0.30715832]
[1749425244620,1.0731453,651.85,651.13,0.30715832]
[1749425244920,1.0731453,651.84,651.13,0.30715832]
[1749425245119,1.0731453,651.91,651.13,0.30715832]
[1749425245325,1.0731453,651.9,651.13,0.30715832]
[1749425245524,1.0731453,651.89,651.13,0.30715832]
[1749425245722,1.0731453,651.88,651.13,0.30715832]
[1749425245921,1.0731453,651.87,651.13,0.30715832]
[1749425246221,1.0731453,651.86,651.13,0.30715832]
[1749425246421,1.0731453,651.85,651.13,0.30715832]
[1749425246723,1.0731453,651.91,651.13,0.30715832]
[1749425246920,1.0731453,651.9,651.13,0.30715832]
[1749425247121,1.0731453,651.89,651.13,0.30715832]
[1749425247322,1.0731453,651.88,651.13,0.30715832]
[1749425247520,1.0731453,651.87,651.13,0.30715832]
[1749425247824,1.0731453,651.86,651.13,0.30715832]
[1749425248024,1.0731453,651.85,651.13,0.30715832]
[1749425248225,1.0731453,651.84,651.13,0.30715832]
[1749425248524,1.0731453,651.91,651.13,0.30715832]
[1749425248821,1.0731453,651.9,651.13,0.30715832]
[1749425249025,1.0731453,651.89,651.13,0.30715832]
[1749425249226,1.0731453,651.88,651.13,0.30715832]
[1749425249525,1.0731453,651.87,651.13,0.30715832]
[1749425249722,1.0731453,651.86,651.13,0.30715832]
[1749425249921,1.0731453,651.85,651.13,0.30715832]
[1749425250221,1.0731453,651.84,651.13,0.30715832]
[1749425250521,1.0731453,651.83,651.13,0.30715832]
[1749425250823,1.0731453,651.82,651.13,0.30715832]
[1749425251121,1.0731453,651.91,651.13,0.30715832]
[1749425251326,1.07401115,651.9,651.13,0.30715832]
[1749425251520,1.07401115,651.89,651.13,0.30715832]
[1749425251823,1.07401115,651.88,651.13,0.30715832]
[1749425252025,1.07401115,651.87,651.13,0.30715832]
[1749425252222,1.07401115,651.86,651.13,0.30715832]
[1749425252421,1.07401115,651.85,651.13,0.30715832]
[1749425252627,1.07401115,651.84,651.13,0.30715832]
[1749425252825,1.07401115,651.83,651.13,0.30715832]
[1749425253025,1.07401115,651.82,651.13,0.30715832]
[1749425253221,1.298,651.92,651.13,0.30715832]
[1749425253222,1.07401115,651.81,651.13,0.30715832]
[1749425253421,1.298,651.92,651.13,0.30715832]
[1749425253629,1.0741974,651.91,651.13,0.30715832]
[1749425253825,1.0741974,651.9,651.13,0.30715832]
[1749425254122,1.0741974,651.89,651.13,0.30715832]
[1749425254321,1.0741974,651.88,651.13,0.30715832]
[1749425254624,1.0741974,651.87,651.13,0.30715832]
[1749425254825,1.0741974,651.86,651.13,0.30715832]
[1749425255126,1.0741974,651.85,651.13,0.30715832]
[1749425255325,1.0741974,651.84,651.13,0.30715832]
[1749425255625,1.0741974,651.83,651.13,0.30715832]
[1749425255825,1.0741974,651.82,651.13,0.30715832]
[1749425256127,1.0741974,651.81,651.13,0.30715832]
[1749425256325,1.0741974,651.8,651.13,0.30715832]
[1749425256523,1.0741974,651.91,651.13,0.30715832]
[1749425256719,1.0719479,651.9,651.13,0.30715832]
[1749425256923,1.0719479,651.89,651.13,0.30715832]
[1749425257121,1.0719479,651.88,651.13,0.30715832]
[1749425257324,1.0719479,651.87,651.13,0.30715832]
[1749425257522,1.0719479,651.86,651.13,0.30715832]
[1749425257826,1.0719479,651.85,651.13,0.30715832]
[1749425258028,1.0719479,651.84,651.13,0.30715832]
[1749425258327,1.0719479,651.83,651.13,0.30715832]
[1749425258524,1.298,651.92,651.13,0.30715832]
[1749425258525,1.0719479,651.82,651.13,0.30715832]
[1749425258724,1.0719479,651.81,651.13,0.30715832]
[1749425258924,1.0719479,651.8,651.13,0.30715832]
[1749425259132,1.298,651.92,651.13,0.30715832]
[1749425259326,1.0716644,651.91,651.13,0.30715832]
[1749425259526,1.0716644,651.9,651.13,0.30715832]
[1749425259729,1.0716644,651.89,651.13,0.30715832]
[1749425259928,1.0716644,651.88,651.13,0.30715832]
[1749425260126,1.0716644,651.87,651.13,0.30715832]
[1749425260329,1.0716644,651.86,651.13,0.30715832]
[1749425260530,1.0716644,651.85,651.13,0.30715832]
[1749425260826,1.0716644,651.84,651.13,0.30715832]
[1749425261032,1.0716644,651.83,651.13,0.30715832]
[1749425261229,1.0716644,651.82,651.13,0.30715832]
[1749425261430,1.0716644,651.81,651.13,0.30715832]
[1749425261629,1.0716644,651.8,651.13,0.30715832]
[1749425261827,1.298,651.92,651.13,0.30715832]
[1749425261828,1.0716644,651.79,651.13,0.30715832]
[1749425262030,1.298,651.92,651.13,0.30715832]
[1749425262325,1.0720525,651.91,651.13,0.30715832]
[1749425262529,1.0720525,651.9,651.13,0.30715832]
[1749425262730,1.0720525,651.89,651.13,0.30715832]
[1749425263032,1.0720525,651.88,651.13,0.30715832]
[1749425263330,1.0720525,651.87,651.13,0.30715832]
[1749425263527,1.0720525,651.86,651.13,0.30715832]
[1749425263726,1.0720525,651.85,651.13,0.30715832]
[1749425264027,1.0720525,651.84,651.13,0.30715832]
[1749425264327,1.0720525,651.83,651.13,0.30715832]
[1749425264527,1.0720525,651.82,651.13,0.30715832]
[1749425264727,1.0720525,651.81,651.13,0.30715832]
[1749425264931,1.0720525,651.8,651.13,0.30715832]
[1749425265129,1.0720525,651.79,651.13,0.30715832]
[1749425265427,1.298,651.92,651.13,0.30715832]
[1749425265631,1.07237739,651.91,651.13,0.30715832]
[1749425265931,1.07237739,651.9,651.13,0.30715832]
[1749425266130,1.07237739,651.89,651.13,0.30715832]
[1749425266330,1.07237739,651.88,651.13,0.30715832]
[1749425266531,1.07237739,651.87,651.13,0.30715832]
[1749425266731,1.07237739,651.86,651.13,0.30715832]
[1749425266927,1.07237739,651.85,651.13,0.30715832]
[1749425267132,1.07237739,651.84,651.13,0.30715832]
[1749425267432,1.07237739,651.83,651.13,0.30715832]
[1749425267732,1.07237739,651.82,651.13,0.30715832]
[1749425268032,0.26703806,651.93,651.13,0.30715832]
[1749425268033,1.07237739,651.81,651.13,0.30715832]
[1749425268232,1.07237739,651.8,651.13,0.30715832]
[1749425268433,1.07237739,651.79,651.13,0.30715832]
[1749425268637,1.07237739,651.78,651.13,0.30715832]
[1749425268937,0.26703806,651.93,651.13,0.30715832]
[1749425269133,1.07237468,651.92,651.13,0.30715832]